fUST/lending_fUST_20250117
["ID","MTS","AMOUNT","RATE_DAILY","PERIOD"]
[349283638,1737099040844,-151.0,0.00020917,2]
[349283639,1737099040854,-151.0,0.00020917,2]
[349283642,1737099040863,-183.081458,0.00020917,2]
[349283643,1737099040872,-183.081458,0.00020917,2]
[349283645,1737099040881,-1000.0,0.00020957,2]
[349283647,1737099040890,-4128.65900238,0.00020969,2]
[349283649,1737099040900,-409.83584,0.00020969,2]
[349283651,1737099040910,-409.83584,0.00020969,2]
[349283654,1737099040920,-173.262944,0.00020969,2]
[349283655,1737099040931,-173.262944,0.00020969,2]
[349283657,1737099040940,-2770.24981005,0.00021,2]
[349283659,1737099040950,-1000.0,0.00021,21]
[349283661,1737099040959,-250.25120388,0.00021,2]
[349283663,1737099040970,-151.0,0.00021,2]
[349283665,1737099040979,-151.0,0.00021,2]
[349283667,1737099040988,-151.0,0.00021,2]
[349283669,1737099040997,-151.0,0.00021,2]
[349283671,1737099041007,-151.0,0.00021,2]
[349283673,1737099041016,-486.571156,0.00021,2]
[349283676,1737099041025,-486.571156,0.00021,2]
[349283677,1737099041034,-456.180502,0.00021,2]
[349283680,1737099041044,-456.180502,0.00021,2]
[349283682,1737099041053,-151.0,0.00021,2]
[349283684,1737099041062,-151.0,0.00021,2]
[349283686,1737099041072,-151.0,0.00021,2]
[349283688,1737099041081,-151.0,0.00021,2]
[349283690,1737099041090,-254.325055,0.00021,2]
[349283692,1737099041099,-151.0,0.00021,2]
[349283694,1737099041108,-383.512062,0.00021,2]
[349283695,1737099041118,-383.512062,0.00021,2]
[349283697,1737099041127,-151.0,0.00021,2]
[349283700,1737099041138,-151.0,0.00021,2]
[349283702,1737099041148,-152.020437,0.00021004,2]
[349283703,1737099041157,-151.0,0.00021004,2]
[349283705,1737099041166,-118.89199885,0.00021004,2]
[349284264,1737099046545,-1158.2,0.00019524,2]
[349285221,1737099968479,269.721409,0.00013973,2]
[349285254,1737100232915,-233.60300998,0.00016456,2]
[349285255,1737100232926,-300.0,0.0001679,2]
[349285256,1737100232936,-7500.71665578,0.00016791,2]
[349285323,1737100238737,-5399.69048842,0.00016791,2]
[349285325,1737100238747,-420.0,0.00018342,2]
[349285327,1737100238756,-500.0,0.00018759,2]
[349285329,1737100238766,-2072.26438403,0.000189,2]
[349285331,1737100238775,-5170.7645093,0.00018905,2]
[349285333,1737100238785,-4002.79063979,0.00019229,2]
[349285335,1737100238794,-11407.6994683,0.00019763,2]
[349285337,1737100238804,-500.0,0.00019855,2]
[349285339,1737100238814,-173.572,0.000199,2]
[349285341,1737100238824,-6089.49844903,0.0002,2]
[349285343,1737100238833,-154.25,0.0002,2]
[349285345,1737100238843,-587.0,0.00020038,2]
[349285347,1737100238853,-500.0,0.0002004,2]
[349285349,1737100238862,-150.118667,0.000201,2]
[349285351,1737100238871,-2309.0,0.00020109,2]
[349285353,1737100238882,-150.105,0.00020109,2]
[349285355,1737100238891,-501.14416764,0.00020131,2]
[349285357,1737100238905,-445.15,0.0002022,2]
[349285359,1737100238915,-174.5,0.00020358,5]
[349285361,1737100238924,-151.0,0.00020358,2]
[349285363,1737100238934,-269.721409,0.00020447,2]
[349285378,1737100239049,-227.470066,0.00020507,2]
[349285380,1737100239060,-151.0,0.00020507,2]
[349285382,1737100239070,-151.0,0.00020507,2]
[349285384,1737100239080,-151.0,0.00020507,2]
[349285386,1737100239090,-151.0,0.00020507,2]
[349285388,1737100239099,-151.0,0.00020507,2]
[349285390,1737100239108,-151.0,0.00020507,2]
[349285392,1737100239119,-222.629446,0.00020507,2]
[349285394,1737100239129,-151.0,0.00020507,2]
[349285396,1737100239138,-313.40433,0.00020507,2]
[349285398,1737100239147,-151.0,0.00020507,2]
[349285400,1737100239157,-313.40433,0.00020507,2]
[349285402,1737100239167,-199.471522,0.00020521,2]
[349285404,1737100239175,-152.778511,0.00020584,2]
[349285406,1737100239184,-313.40433,0.00020584,2]
[349285408,1737100239194,-313.40433,0.00020584,2]
[349285410,1737100239204,-174.5,0.00020659,5]
[349285412,1737100239214,-151.0,0.0002073,2]
[349285414,1737100239223,-151.0,0.00020733,2]
[349285416,1737100239233,-151.0,0.00020733,2]
[349285418,1737100239243,-151.0,0.00020733,2]
[349285420,1737100239252,-389.256925,0.00020733,2]
[349285422,1737100239262,-389.256925,0.00020733,2]
[349285424,1737100239271,-151.0,0.00020733,2]
[349285426,1737100239280,-151.0,0.00020733,2]
[349285428,1737100239290,-151.0,0.00020733,2]
[349285430,1737100239299,-151.0,0.00020733,2]
[349285432,1737100239309,-151.0,0.00020733,2]
[349285434,1737100239319,-151.0,0.00020733,2]
[349285436,1737100239328,-151.0,0.00020733,2]
[349285438,1737100239337,-151.0,0.00020733,2]
[349285440,1737100239347,-224.294,0.00020759,2]
[349285442,1737100239356,-204.91792,0.00020759,2]
[349285444,1737100239365,-151.0,0.00020759,2]
[349285446,1737100239374,-151.0,0.00020759,2]
[349285448,1737100239383,-151.0,0.00020759,2]
[349285450,1737100239392,-151.0,0.00020759,2]
[349285452,1737100239401,-235.138094,0.00020759,2]
[349285454,1737100239411,-151.0,0.00020759,2]
[349285456,1737100239420,-235.138094,0.00020759,2]
[349285458,1737100239429,-151.0,0.00020759,2]
[349285460,1737100239439,-348.8066728,0.00020793,2]
[349285462,1737100239448,-151.0,0.000209,2]
[349285464,1737100239457,-151.0,0.000209,2]
[349285466,1737100239466,-3113.03081317,0.000209,2]
[349285468,1737100239475,-500.0,0.00020951,2]
[349285470,1737100239485,-174.5,0.0002096,5]
[349285472,1737100239494,-179.00338434,0.00020997,2]
[349285474,1737100239503,-752.19537795,0.00021003,2]
[349285476,1737100239512,-3113.03081315,0.00021003,2]
[349285478,1737100239521,-313.40433,0.00021004,2]
[349285480,1737100239531,-313.40433,0.00021004,2]
[349285482,1737100239540,-151.0,0.00021004,2]
[349285484,1737100239549,-151.0,0.00021018,2]
[349285486,1737100239558,-151.0,0.00021018,2]
[349285488,1737100239567,-191.756031,0.00021018,2]
[349285490,1737100239578,-188.557585,0.00021018,2]
[349285492,1737100239587,-153.689664,0.00021018,2]
[349285494,1737100239596,-389.256925,0.00021018,2]
[349285496,1737100239605,-389.256925,0.00021018,2]
[349285498,1737100239615,-151.0,0.00021018,2]
[349285500,1737100239624,-151.0,0.00021018,2]
[349285502,1737100239634,-151.0,0.00021018,2]
[349285504,1737100239643,-151.0,0.00021018,2]
[349285506,1737100239653,-297.050412,0.00021018,2]
[349285508,1737100239662,-289.157492,0.00021066,2]
[349285510,1737100239672,-3113.03081315,0.00021107,2]
[349285512,1737100239681,-151.0,0.00021107,2]
[349285514,1737100239690,-151.0,0.00021107,2]
[349285516,1737100239699,-281.258301,0.00021107,2]
[349285518,1737100239709,-667.55676772,0.00021135,2]
[349285520,1737100239718,-151.0,0.00021135,2]
[349285522,1737100239727,-151.0,0.00021135,2]
[349285524,1737100239736,-151.0,0.00021135,2]
[349285526,1737100239747,-151.0,0.00021135,2]
[349285528,1737100239764,-151.0,0.00021143,2]
[349285530,1737100239774,-151.0,0.00021143,2]
[349285532,1737100239783,-204.91792,0.00021143,2]
[349285534,1737100239793,-151.0,0.00021143,2]
[349285536,1737100239803,-151.0,0.00021143,2]
[349285538,1737100239812,-151.0,0.00021143,2]
[349285540,1737100239822,-235.138094,0.00021143,2]
[349285542,1737100239831,-151.0,0.00021143,2]
[349285544,1737100239841,-235.138094,0.00021143,2]
[349285546,1737100239851,-151.0,0.00021143,2]
[349285548,1737100239861,-313.40433,0.00021143,2]
[349285550,1737100239870,-313.40433,0.00021143,2]
[349285552,1737100239881,-151.0,0.00021143,2]
[349285554,1737100239891,-151.0,0.00021158,2]
[349285556,1737100239904,-191.756031,0.00021158,2]
[349285558,1737100239913,-251.990532,0.00021158,2]
[349285560,1737100239923,-389.256925,0.00021158,2]
[349285562,1737100239931,-389.256925,0.00021158,2]
[349285564,1737100239941,-151.0,0.00021158,2]
[349285566,1737100239950,-1004.81779732,0.00021184,2]
[349285568,1737100239959,-151.0,0.0002121,2]
[349285570,1737100239969,-3113.03081315,0.0002121,2]
[349285572,1737100239980,-460.6228371,0.00021214,2]
[349285574,1737100239989,-174.5,0.0002126,5]
[349285576,1737100239999,-395.47267101,0.00021263,2]
[349285578,1737100240009,-3113.03081315,0.00021314,2]
[349285580,1737100240019,-151.0,0.00021314,2]
[349285582,1737100240028,-151.0,0.00021314,2]
[349285584,1737100240039,-191.756031,0.00021314,2]
[349285586,1737100240049,-389.256925,0.00021314,2]
[349285588,1737100240060,-389.256925,0.00021314,2]
[349285590,1737100240071,-151.0,0.00021314,2]
[349285592,1737100240081,-151.0,0.00021314,2]
[349285594,1737100240090,-281.258301,0.00021314,2]
[349285596,1737100240099,-151.0,0.00021314,2]
[349285598,1737100240109,-151.0,0.00021314,2]
[349285599,1737100240119,-151.0,0.00021314,2]
[349285600,1737100240128,-151.0,0.00021314,2]
[349285601,1737100240139,-151.0,0.00021314,2]
[349285602,1737100240149,-151.0,0.00021314,2]
[349285603,1737100240161,-151.0,0.00021314,2]
[349285604,1737100240170,-185.64539636,0.00021314,2]
[349285605,1737100240184,-127.75893364,0.00021314,2]
[349285606,1737100240193,-276.10384892,0.00021314,2]
[349285607,1737100240204,-37.30048108,0.00021314,2]
[349285608,1737100240214,-151.0,0.00021314,2]
[349285609,1737100240224,-259.97,0.0002135,2]
[349285610,1737100240234,-204.91792,0.0002135,2]
[349285611,1737100240243,-151.0,0.0002135,2]
[349285612,1737100240253,-151.0,0.0002135,2]
[349285613,1737100240263,-151.0,0.0002135,2]
[349285614,1737100240273,-235.138094,0.0002135,2]
[349285616,1737100240283,-151.0,0.0002135,2]
[349285618,1737100240292,-235.138094,0.0002135,2]
[349285620,1737100240302,-151.0,0.0002135,2]
[349285622,1737100240312,-460.62283707,0.00021365,2]
[349285624,1737100240321,-151.0,0.00021417,2]
[349285626,1737100240331,-3113.03081315,0.00021417,2]
[349285628,1737100240340,-460.62283707,0.00021516,2]
[349285630,1737100240349,-394.58558114,0.0002152,2]
[349285632,1737100240359,-3113.03081315,0.00021521,2]
[349285634,1737100240369,-151.0,0.00021521,2]
[349285636,1737100240378,-151.0,0.00021521,2]
[349285638,1737100240389,-191.756031,0.00021521,2]
[349285640,1737100240398,-389.256925,0.00021521,2]
[349285642,1737100240408,-389.256925,0.00021521,2]
[349285644,1737100240418,-151.0,0.00021521,2]
[349285647,1737100240427,-262.884263,0.00021521,2]
[349285648,1737100240436,-281.258301,0.00021521,2]
[349285650,1737100240446,-151.0,0.00021521,2]
[349285653,1737100240455,-313.40433,0.00021521,2]
[349285655,1737100240466,-313.40433,0.00021521,2]
[349285656,1737100240475,-151.0,0.00021521,2]
[349285659,1737100240484,-151.0,0.00021561,2]
[349285661,1737100240494,-174.5,0.00021561,6]
[349285662,1737100240503,-1720.0,0.000216,4]
[349285664,1737100240512,-151.0,0.000216,2]
[349285666,1737100240521,-151.0,0.000216,2]
[349285669,1737100240531,-226.382628,0.00021624,2]
[349285671,1737100240540,-3113.03081315,0.00021624,3]
[349285673,1737100240550,-460.62283707,0.00021666,2]
[349285674,1737100240559,-151.0,0.00021719,2]
[349285677,1737100240568,-3113.03081315,0.00021728,3]
[349285679,1737100240578,-151.0,0.00021728,2]
[349285681,1737100240587,-151.0,0.00021728,2]
[349285683,1737100240597,-191.756031,0.00021728,2]
[349285692,1737100240679,-389.256925,0.00021728,2]
[349285694,1737100240689,-389.256925,0.00021728,2]
[349285696,1737100240698,-151.0,0.00021728,2]
[349285698,1737100240707,-281.258301,0.00021728,2]
[349285700,1737100240717,-204.91792,0.00021728,2]
[349285702,1737100240727,-151.0,0.00021728,2]
[349285704,1737100240736,-151.0,0.00021728,2]
[349285706,1737100240746,-151.0,0.00021728,2]
[349285708,1737100240755,-235.138094,0.00021728,2]
[349285710,1737100240764,-151.0,0.00021728,2]
[349285712,1737100240773,-235.138094,0.00021728,2]
[349285714,1737100240782,-151.0,0.00021728,2]
[349285716,1737100240792,-151.0,0.00021728,2]
[349285718,1737100240801,-151.0,0.00021728,2]
[349285720,1737100240813,-151.0,0.00021728,2]
[349285722,1737100240822,-151.0,0.00021728,2]
[349285724,1737100240833,-313.40433,0.00021728,2]
[349285726,1737100240843,-313.40433,0.00021728,2]
[349285728,1737100240852,-293.872472,0.00021728,2]
[349285730,1737100240862,-151.0,0.00021787,2]
[349285732,1737100240872,-151.0,0.00021787,2]
[349285735,1737100240882,-151.0,0.00021787,2]
[349285737,1737100240892,-191.756031,0.00021787,2]
[349285739,1737100240906,-191.756031,0.00021787,2]
[349285741,1737100240915,-389.256925,0.00021787,2]
[349285743,1737100240925,-389.256925,0.00021787,2]
[349285745,1737100240934,-389.256925,0.00021787,2]
[349285747,1737100240943,-389.256925,0.00021787,2]
[349285749,1737100240953,-151.0,0.00021787,2]
[349285751,1737100240963,-281.258301,0.00021787,2]
[349285753,1737100240974,-204.91792,0.00021787,2]
[349285755,1737100240984,-204.91792,0.00021787,2]
[349285757,1737100240993,-151.0,0.00021787,2]
[349285759,1737100241003,-151.0,0.00021787,2]
[349285761,1737100241012,-151.0,0.00021787,2]
[349285763,1737100241021,-151.0,0.00021787,2]
[349285765,1737100241030,-235.138094,0.00021787,2]
[349285767,1737100241039,-151.0,0.00021787,2]
[349285769,1737100241048,-235.138094,0.00021787,2]
[349285771,1737100241059,-186.954266,0.00021787,2]
[349285773,1737100241069,-248.216203,0.00021787,2]
[349285775,1737100241078,-151.0,0.00021787,2]
[349285777,1737100241087,-151.0,0.00021787,2]
[349285779,1737100241096,-151.0,0.00021787,2]
[349285781,1737100241106,-151.0,0.00021787,2]
[349285783,1737100241116,-151.0,0.00021787,2]
[349285785,1737100241125,-313.40433,0.00021787,2]
[349285787,1737100241135,-313.40433,0.00021787,2]
[349285789,1737100241144,-33818.81415918,0.00021816,3]
[349285791,1737100241153,-1256.89200945,0.00021816,2]
[349285793,1737100241163,-204.91792,0.00021816,2]
[349285795,1737100241173,-204.91792,0.00021816,2]
[349285797,1737100241182,-151.0,0.00021816,2]
[349285799,1737100241191,-151.0,0.00021816,2]
[349285801,1737100241201,-151.0,0.00021816,2]
[349285803,1737100241210,-272.49069,0.00021816,2]
[349285805,1737100241219,-235.138094,0.00021816,2]
[349285807,1737100241229,-151.0,0.00021816,2]
[349285809,1737100241238,-235.138094,0.00021816,2]
[349285811,1737100241247,-151.0,0.00021816,2]
[349285813,1737100241256,-151.0,0.00021816,2]
[349285815,1737100241266,-151.0,0.00021816,2]
[349285817,1737100241275,-185.688423,0.00021816,2]
[349285819,1737100241284,-151.0,0.00021816,2]
[349285821,1737100241294,-313.40433,0.00021816,2]
[349285823,1737100241303,-313.40433,0.00021816,2]
[349285825,1737100241314,-460.62283707,0.00021817,2]
[349285827,1737100241323,-151.0,0.00021819,2]
[349285829,1737100241332,-151.0,0.00021819,2]
[349285831,1737100241341,-1961.25919341,0.00021831,5]
[349285833,1737100241351,-191.756031,0.00021831,2]
[349285835,1737100241360,-191.756031,0.00021831,2]
[349285837,1737100241370,-389.256925,0.00021831,2]
[349285839,1737100241379,-389.256925,0.00021831,2]
[349285841,1737100241389,-151.0,0.00021831,2]
[349285843,1737100241399,-281.258301,0.00021831,2]
[349285846,1737100241410,-3113.03081315,0.00021831,3]
[349285848,1737100241419,-174.5,0.00021861,6]
[349285850,1737100241429,-313.40433,0.00021861,2]
[349285852,1737100241438,-313.40434,0.00021861,2]
[349285854,1737100241448,-455.70474889,0.0002188,2]
[349285855,1737100241457,-3775.28052159,0.0002189,3]
[349285858,1737100241467,-151.0,0.0002189,2]
[349285860,1737100241477,-204.91792,0.0002189,2]
[349285862,1737100241486,-204.91792,0.0002189,2]
[349285864,1737100241496,-151.0,0.0002189,2]
[349285866,1737100241505,-151.0,0.0002189,2]
[349285868,1737100241515,-151.0,0.0002189,2]
[349285870,1737100241525,-235.138094,0.0002189,2]
[349285872,1737100241534,-151.0,0.0002189,2]
[349285874,1737100241544,-235.138094,0.0002189,2]
[349285876,1737100241553,-157.975316,0.0002189,2]
[349285878,1737100241563,-151.0,0.0002189,2]
[349285880,1737100241572,-292.544104,0.0002189,2]
[349285882,1737100241582,-151.0,0.0002189,2]
[349285884,1737100241592,-823.0,0.0002189,2]
[349285886,1737100241602,-300.0,0.000219,9]
[349285888,1737100241611,-6203.30000777,0.0002191,2]
[349285890,1737100241620,-191.756031,0.0002191,2]
[349285892,1737100241630,-191.756031,0.0002191,2]
[349285894,1737100241639,-389.256925,0.0002191,2]
[349285896,1737100241649,-389.256924,0.0002191,2]
[349285898,1737100241658,-151.0,0.0002191,2]
[349285900,1737100241667,-281.258301,0.0002191,2]
[349285902,1737100241677,-204.91792,0.0002191,2]
[349285904,1737100241686,-204.91792,0.0002191,2]
[349285906,1737100241696,-151.0,0.0002191,2]
[349285908,1737100241706,-151.0,0.0002191,2]
[349285910,1737100241715,-151.0,0.0002191,2]
[349285912,1737100241724,-235.138094,0.0002191,2]
[349285914,1737100241734,-151.0,0.0002191,2]
[349285916,1737100241743,-235.138094,0.0002191,2]
[349285918,1737100241752,-151.0,0.0002191,2]
[349285920,1737100241761,-151.0,0.0002191,2]
[349285922,1737100241770,-153.0,0.00021914,2]
[349285924,1737100241779,-153.0,0.00021914,2]
[349285926,1737100241789,-780.58325576,0.00021915,5]
[349285928,1737100241798,-500.0,0.00021916,2]
[349285930,1737100241808,-309.69676124,0.00021916,2]
[349285932,1737100241817,-236.76563677,0.00021916,2]
[349285934,1737100241827,-500.0,0.00021916,2]
[349285936,1737100241836,-500.0,0.00021916,2]
[349285938,1737100241846,-151.0,0.00021916,2]
[349285940,1737100241856,-191.339806,0.00021916,2]
[349285942,1737100241865,-191.756031,0.00021916,2]
[349285945,1737100241875,-191.756031,0.00021916,2]
[349285946,1737100241885,-191.756031,0.00021916,2]
[349285948,1737100241896,-191.756026,0.00021916,2]
[349285951,1737100241910,-151.0,0.00021916,2]
[349285953,1737100241920,-151.0,0.00021916,2]
[349285955,1737100241929,-281.258301,0.00021916,2]
[349285957,1737100241939,-281.258301,0.00021916,2]
[349285959,1737100241948,-204.91792,0.00021916,2]
[349285961,1737100241958,-204.91792,0.00021916,2]
[349285962,1737100241967,-204.91792,0.00021916,2]
[349285964,1737100241976,-204.91792,0.00021916,2]
[349285967,1737100241987,-151.0,0.00021916,2]
[349285968,1737100241996,-156.698202,0.00021916,2]
[349285971,1737100242006,-151.0,0.00021916,2]
[349285973,1737100242015,-183.938662,0.00021916,2]
[349285975,1737100242024,-151.0,0.00021916,2]
[349285977,1737100242035,-181.457475,0.00021916,2]
[349285979,1737100242043,-235.138094,0.00021916,2]
[349285981,1737100242054,-235.138094,0.00021916,2]
[349285983,1737100242064,-151.0,0.00021916,2]
[349285985,1737100242073,-151.0,0.00021916,2]
[349285987,1737100242084,-235.138094,0.00021916,2]
[349285989,1737100242094,-235.13808504,0.00021916,2]
[349285998,1737100242103,-151.0,0.00021916,2]
[349286000,1737100242182,-151.0,0.00021916,2]
[349286002,1737100242191,-500.0,0.00021916,2]
[349286004,1737100242201,-240.63028843,0.00021916,2]
[349286006,1737100242210,-500.0,0.00021916,2]
[349286008,1737100242219,-500.0,0.00021916,2]
[349286010,1737100242229,-556.75000001,0.00021916,2]
[349286012,1737100242238,-500.0,0.00021916,2]
[349286014,1737100242247,-500.0,0.00021916,2]
[349286016,1737100242256,-500.0,0.00021916,2]
[349286018,1737100242266,-500.0,0.00021916,2]
[349286020,1737100242275,-500.0,0.00021916,2]
[349286022,1737100242284,-500.0,0.00021916,2]
[349286024,1737100242293,-500.0,0.00021916,2]
[349286026,1737100242303,-500.0,0.00021916,2]
[349286029,1737100242312,-500.0,0.00021916,2]
[349286031,1737100242322,-345.68491424,0.00021916,2]
[349286033,1737100242331,-500.0,0.00021916,2]
[349286035,1737100242341,-500.0,0.00021916,2]
[349286037,1737100242350,-500.0,0.00021916,2]
[349286039,1737100242360,-500.0,0.00021916,2]
[349286041,1737100242369,-500.0,0.00021916,2]
[349286042,1737100242378,-500.0,0.00021916,2]
[349286045,1737100242387,-238.38082201,0.00021916,2]
[349286046,1737100242397,-227.80891633,0.00021916,2]
[349286049,1737100242406,-500.0,0.00021916,2]
[349286051,1737100242416,-500.0,0.00021916,2]
[349286053,1737100242425,-503.69639761,0.00021916,2]
[349286055,1737100242434,-500.0,0.00021916,2]
[349286057,1737100242443,-500.0,0.00021916,2]
[349286058,1737100242453,-500.0,0.00021916,2]
[349286060,1737100242462,-500.0,0.00021916,2]
[349286063,1737100242471,-500.0,0.00021916,2]
[349286064,1737100242481,-500.0,0.00021916,2]
[349286066,1737100242490,-500.0,0.00021916,2]
[349286069,1737100242500,-500.0,0.00021916,2]
[349286071,1737100242510,-500.0,0.00021916,2]
[349286073,1737100242519,-352.30831591,0.00021916,2]
[349286075,1737100242528,-500.0,0.00021916,2]
[349286077,1737100242537,-500.0,0.00021916,2]
[349286079,1737100242547,-500.0,0.00021916,2]
[349286081,1737100242556,-182.23381212,0.00021916,2]
[349286083,1737100242566,-500.0,0.00021916,2]
[349286085,1737100242575,-500.0,0.00021916,2]
[349286087,1737100242585,-500.0,0.00021916,2]
[349286089,1737100242594,-500.0,0.00021916,2]
[349286091,1737100242603,-500.0,0.00021916,2]
[349286093,1737100242612,-500.0,0.00021916,2]
[349286095,1737100242622,-500.0,0.00021916,2]
[349286097,1737100242631,-209.76872269,0.00021916,2]
[349286099,1737100242642,-500.0,0.00021916,2]
[349286101,1737100242651,-500.0,0.00021916,2]
[349286103,1737100242660,-500.0,0.00021916,2]
[349286105,1737100242669,-500.0,0.00021916,2]
[349286107,1737100242679,-500.0,0.00021916,2]
[349286109,1737100242689,-500.0,0.00021916,2]
[349286111,1737100242699,-500.0,0.00021916,2]
[349286113,1737100242708,-500.0,0.00021916,2]
[349286115,1737100242717,-500.0,0.00021916,2]
[349286117,1737100242727,-500.0,0.00021916,2]
[349286119,1737100242736,-500.0,0.00021916,2]
[349286121,1737100242746,-500.0,0.00021916,2]
[349286123,1737100242755,-500.0,0.00021916,2]
[349286125,1737100242765,-500.0,0.00021916,2]
[349286127,1737100242775,-500.0,0.00021916,2]
[349286129,1737100242785,-500.0,0.00021916,2]
[349286131,1737100242794,-500.0,0.00021916,2]
[349286133,1737100242803,-500.0,0.00021916,2]
[349286135,1737100242812,-500.0,0.00021916,2]
[349286137,1737100242822,-500.0,0.00021916,2]
[349286139,1737100242831,-500.0,0.00021916,2]
[349286141,1737100242839,-500.0,0.00021916,2]
[349286143,1737100242849,-500.0,0.00021916,2]
[349286145,1737100242859,-500.0,0.00021916,2]
[349286147,1737100242868,-500.0,0.00021916,2]
[349286149,1737100242877,-500.0,0.00021916,2]
[349286151,1737100242889,-500.0,0.00021916,2]
[349286153,1737100242899,-500.0,0.00021916,2]
[349286155,1737100242912,-500.0,0.00021916,2]
[349286157,1737100242922,-500.0,0.00021916,2]
[349286159,1737100242931,-500.0,0.00021916,2]
[349286161,1737100242941,-500.0,0.00021916,2]
[349286163,1737100242951,-160.0,0.00021916,2]
[349286165,1737100242960,-154.25,0.00021917,2]
[349286167,1737100242970,-500.0,0.00021917,3]
[349286169,1737100242981,-501.44489241,0.00021917,3]
[349286171,1737100242991,-500.0,0.00021917,3]
[349286173,1737100243000,-152.6169709,0.00021917,3]
[349286176,1737100243010,-503.25846764,0.00021917,3]
[349286179,1737100243019,-500.0,0.00021917,3]
[349286182,1737100243028,-511.21581239,0.00021917,3]
[349286185,1737100243038,-500.0,0.00021917,3]
[349286189,1737100243047,-500.0,0.00021917,3]
[349286192,1737100243059,-500.0,0.00021917,3]
[349286195,1737100243068,-500.0,0.00021917,3]
[349286199,1737100243078,-500.0,0.00021917,3]
[349286201,1737100243088,-501.2500876,0.00021917,3]
[349286204,1737100243097,-500.0,0.00021917,3]
[349286207,1737100243107,-500.0,0.00021917,3]
[349286211,1737100243116,-500.0,0.00021917,3]
[349286215,1737100243126,-500.0,0.00021917,3]
[349286218,1737100243137,-500.0,0.00021917,3]
[349286221,1737100243146,-500.0,0.00021917,3]
[349286223,1737100243155,-500.0,0.00021917,3]
[349286226,1737100243164,-500.0,0.00021917,3]
[349286228,1737100243173,-500.0,0.00021917,3]
[349286229,1737100243182,-507.59861007,0.00021917,3]
[349286230,1737100243191,-631.15462097,0.00021917,3]
[349286231,1737100243201,-500.0,0.00021917,3]
[349286232,1737100243210,-502.33539019,0.00021917,3]
[349286234,1737100243219,-504.02720275,0.00021917,3]
[349286236,1737100243228,-500.0,0.00021917,3]
[349286238,1737100243237,-510.43104513,0.00021917,3]
[349286239,1737100243246,-500.0,0.00021917,3]
[349286240,1737100243255,-466.9707022,0.00021917,3]
[349286241,1737100243265,-500.0,0.00021917,3]
[349286242,1737100243274,-500.0,0.00021917,3]
[349286243,1737100243283,-500.0,0.00021917,3]
[349286244,1737100243292,-500.0,0.00021917,3]
[349286246,1737100243301,-556.44567744,0.00021917,3]
[349286247,1737100243311,-500.0,0.00021917,3]
[349286248,1737100243321,-594.94761351,0.00021917,3]
[349286249,1737100243330,-500.0,0.00021917,3]
[349286251,1737100243339,-500.0,0.00021917,3]
[349286254,1737100243348,-501.98682759,0.00021917,3]
[349286255,1737100243357,-500.0,0.00021917,3]
[349286257,1737100243367,-500.0,0.00021917,3]
[349286259,1737100243376,-500.0,0.00021917,3]
[349286261,1737100243386,-500.0,0.00021917,3]
[349286263,1737100243396,-500.0,0.00021917,3]